[Event "World Junior U20 Open 2018"]
[Site "Gebze"]
[Date "2018.09.13"]
[Round "9.55"]
[White "Ozer, Omer Faruk"]
[Black "Yilmaz, Goktan"]
[Result "1-0"]
[ECO "B23"]
[WhiteElo "2388"]
[BlackElo "2237"]
[Annotator "NA"]
[PlyCount "129"]
[EventDate "2018.09.05"]
[EventType "swiss"]
[EventCountry "TUR"]
[SourceTitle "playchess.com"]
[Source "ChessBase"]
[SourceQuality "1"]
[TimeControl "40/5400+30:1800+30"]

1. e4 {[%emt 0:00:30]} c5 {[%emt 0:00:30]} 2. Nc3 {[%emt 0:00:00]} d6 {[%emt 0:00:30]} 3. d4 {[%emt 0:01:00]} cxd4 {[%emt 0:01:00] B23: Closed Sicilian: Lines without g3} 4. Qxd4 {[%emt 0:00:30]} Nf6 {[%emt 0:05:30]} (4... Nc6 5. Qd2 Nf6 6. b3 e6 7. Bb2 a6 8. O-O-O b5 9. f3 h5 10. Nh3 Be7 11. Ng5 {1-0 (31) Carlsen,M (2843)-Wojtaszek,R (2744) Shamkir 2018}) 5. Qd2 {[%emt 0:12:30]} g6 {[%emt 0:04:30]} 6. b3 {[%emt 0:00:30]} Bg7 {[%emt 0:00:30]} 7. f3 {[%emt 0:00:30]} Nc6 {[%emt 0:06:30]} 8. Bb2 {[%emt 0:00:30]} O-O {[%emt 0:00:30]} (8... d5 $5) 9. O-O-O {[%emt 0:01:00]} Qa5 {[%emt 0:07:30]} 10. Kb1 {[%emt 0:03:30]} Be6 {[%emt 0:06:30]} 11. Nge2 {[%emt 0:14:30]} Rac8 $146 {[%emt 0:05:30]} 12. a3 {[%emt 0:08:30]} Nd7 {[%emt 0:48:00]} 13. h4 {[%emt 0:00:30]} b5 {[%emt 0:05:30]} 14. Nd5 {[%emt 0:01:30]} Qxd2 {[%emt 0:01:30]} 15. Rxd2 {[%emt 0:00:30]} Bxb2 {[%emt 0:01:30]} 16. Kxb2 {[%emt 0:00:30]} Bxd5 {[%emt 0:02:30]} 17. exd5 {[%emt 0:02:30]} Nce5 {[%emt 0:00:30]} 18. Nd4 {[%emt 0:57:00]} a6 {[%emt 0:00:00]} 19. g3 {[%emt 0:13:30]} ({White should try} 19. f4 $14 Ng4 20. Nc6) 19... Nb6 {[%emt 0:03:00]} 20. Bg2 {[%emt 0:03:30]} Rc7 {[%emt 0:06:30]} 21. Re1 {[%emt 0:01:30]} Rfc8 {[%emt 0:00:30]} 22. Rde2 {[%emt 0:03:30]} Kf8 {[%emt 0:03:30]} 23. Bh3 {[%emt 1:22:07]} Re8 {[%emt 1:17:30]} 24. Rd1 {[%emt 0:08:54]} Ned7 {[%emt 0:05:02]} 25. Red2 {[%emt 0:01:46]} Nf6 {[%emt 0:00:30]} 26. Ne2 {[%emt 0:01:15]} Rc5 {[%emt 0:02:03]} 27. Nc3 {[%emt 0:00:26]} Rc7 {[%emt 0:01:45]} 28. g4 {[%emt 0:01:01]} Nfd7 {[%emt 0:03:53]} 29. g5 {[%emt 0:03:13]} Kg7 {[%emt 0:02:12]} 30. f4 {[%emt 0:00:27]} h6 {[%emt 0:01:10]} 31. gxh6+ {[%emt 0:03:59]} Kxh6 {[%emt 0:00:40]} 32. Ne4 {[%emt 0:00:05]} Nf6 {[%emt 0:03:05]} 33. Ng5 {[%emt 0:00:04]} Kg7 {[%emt 0:00:39]} 34. Be6 {[%emt 0:00:08]} Ne4 {[%emt 0:02:37]} 35. Nxe4 {[%emt 0:01:49]} fxe6 {[%emt 0:00:01]} 36. Ng5 {[%emt 0:00:00]} Kf6 {[%emt 0:00:37]} 37. Nxe6 {[%emt 0:00:16]} Rcc8 {[%emt 0:00:10]} 38. Ng5 {[%emt 0:02:09]} Rh8 {[%emt 0:01:13]} 39. Re1 {[%emt 0:00:44]} Rxh4 {[%emt 0:01:46]} 40. Re6+ {[%emt 0:00:30]} Kf5 {[%emt 0:00:00]} 41. Rxe7 {[%emt 0:01:37]} Rxf4 {[%emt 0:09:37]} 42. Nf7 {[%emt 0:02:30]} Kf6 {[%emt 0:11:37]} 43. Rb7 $2 {[%emt 0:00:30]} (43. Rde2 $18 {is the precise move to win.} Nxd5 44. R2e6+ Kg7 45. Nxd6+ Nxe7 46. Rxe7+ Kf6 47. Nxc8) 43... Nxd5 {[%emt 0:00:12]} 44. Nxd6 {[%emt 0:10:02]} Rc5 {[%emt 0:03:09]} 45. b4 {[%emt 0:01:21]} Nxb4 {[%emt 0:00:08]} 46. Rf7+ {[%emt 0:00:18]} Ke5 {[%emt 0:00:31]} 47. Re7+ {[%emt 0:01:27]} Kf6 {[%emt 0:00:15]} 48. Rf7+ {[%emt 0:04:51]} Ke5 {[%emt 0:00:01]} 49. Rxf4 {[%emt 0:00:00]} Kxf4 {[%emt 0:00:46]} 50. axb4 {[%emt 0:00:00]} Rc6 {[%emt 0:00:00]} 51. Nf7 {[%emt 0:02:01]} g5 {[%emt 0:01:26]} 52. Rf2+ {[%emt 0:01:43]} Kg3 {[%emt 0:00:14]} 53. Rf1 {[%emt 0:00:46]} g4 {[%emt 0:01:07]} 54. Rg1+ {[%emt 0:00:08]} Kf4 {[%emt 0:02:11]} 55. Rxg4+ {[%emt 0:00:40]} Kf5 {[%emt 0:00:06]} 56. Rg5+ {[%emt 0:00:00]} Kf4 {[%emt 0:00:10]} 57. Rc5 {[%emt 0:00:10]} Rxc5 {[%emt 0:01:42]} 58. bxc5 {[%emt 0:00:30]} Kf5 {[%emt 0:00:00]} 59. c6 {[%emt 0:01:02]} Ke6 {[%emt 0:00:02]} 60. c4 {[%emt 0:00:00]} b4 {[%emt 0:00:26]} 61. c5 {[%emt 0:00:00]} Ke7 {[%emt 0:00:00]} 62. Kb3 {[%emt 0:00:34]} a5 {[%emt 0:00:00]} 63. Nd6 {[%emt 0:00:00]} Kd8 {[%emt 0:00:21]} 64. Nb7+ {[%emt 0:00:00]} Kc7 {[%emt 0:00:09]} 65. Nxa5 {[%emt 0:00:00]} 1-0

[Event "World Junior U20 Open 2018"]
[Site "Gebze"]
[Date "2018.09.13"]
[Round "9.56"]
[White "Amartuvshin, Ganzorig"]
[Black "Arcuti, Davide"]
[Result "1/2-1/2"]
[ECO "D46"]
[WhiteElo "2280"]
[BlackElo "2356"]
[Annotator "NA"]
[PlyCount "121"]
[EventDate "2018.09.05"]
[EventType "swiss"]
[EventCountry "TUR"]
[SourceTitle "playchess.com"]
[Source "ChessBase"]
[SourceQuality "1"]
[TimeControl "40/5400+30:1800+30"]

1. d4 {[%emt 0:00:30]} Nf6 {[%emt 0:00:30]} 2. c4 {[%emt 0:00:00]} e6 {[%emt 0:00:30]} 3. Nf3 {[%emt 0:00:00]} d5 {[%emt 0:00:30]} 4. Nc3 {[%emt 0:00:00]} c6 {[%emt 0:00:00]} 5. e3 {[%emt 0:01:00]} Nbd7 {[%emt 0:00:00]} 6. Bd3 {[%emt 0:00:30]} Bd6 {[%emt 0:01:30]} 7. e4 {[%emt 0:00:30]} dxe4 {[%emt 0:09:30]} 8. Nxe4 {[%emt 0:00:30]} Nxe4 {[%emt 0:00:30]} 9. Bxe4 {[%emt 0:00:30]} e5 {[%emt 0:06:30]} 10. O-O {[%emt 0:04:00] LiveBook: 105 Games} exd4 11. Qxd4 Qf6 12. Qd1 Ne5 {D46: Semi-Slav: 5 e3 Nbd7 6 Bd3, Black avoids the Meran} (12... h6 13. Bc2 Ne5 14. Nxe5 Bxe5 15. Re1 O-O 16. Qd3 g6 17. Bxh6 Bf5 18. Qb3 Bxc2 19. Qxc2 Rfe8 20. Be3 Bxb2 {1-0 (47) Salem,A (2469)-Panjwani,R (2395) Chotowa 2010}) 13. Nxe5 Bxe5 14. Re1 {[%emt 0:20:00]} O-O {[%emt 1:07:00]} 15. Bxh7+ {[%emt 0:00:30]} Kxh7 {[%emt 0:00:30]} 16. Qh5+ {[%emt 0:00:30]} Kg8 {[%emt 0:00:30]} 17. Rxe5 $146 {[%emt 0:00:30]} ({Predecessor:} 17. Qxe5) 17... Bg4 {[%emt 0:00:30]} 18. Qg5 {[%emt 0:00:30]} Qxg5 {[%emt 0:00:30]} 19. Rxg5 {[%emt 0:00:30]} Be6 {[%emt 0:00:30]} 20. b3 {[%emt 0:00:30]} a5 {[%emt 0:04:30]} 21. Ba3 {[%emt 0:03:30]} Rfd8 {[%emt 0:00:30]} 22. Bb2 {[%emt 0:03:30]} g6 {[%emt 0:00:30]} 23. Bf6 {[%emt 0:01:30]} Rd3 {[%emt 0:02:30]} 24. Rg3 {[%emt 0:40:00]} Rxg3 {[%emt 0:01:30]} 25. hxg3 {[%emt 0:01:30]} a4 {[%emt 0:04:26]} 26. Rd1 {[%emt 0:00:30]} axb3 {[%emt 0:00:43]} 27. axb3 {[%emt 0:00:00]} Kf8 {[%emt 0:01:40]} 28. Rd4 {[%emt 0:01:30]} Ke8 {[%emt 0:00:36]} 29. b4 {[%emt 0:00:30]} b5 {[%emt 0:01:50]} 30. c5 {[%emt 0:03:30]} Bd5 {[%emt 0:01:21]} 31. Rd3 {[%emt 0:01:30]} Kd7 32. g4 Re8 33. f3 Re1+ 34. Kf2 Rb1 35. Bc3 {[%emt 0:58:30]} Ke6 {[%emt 1:41:04]} 36. Re3+ {[%emt 0:00:30]} Kd7 {[%emt 0:00:30]} 37. g5 {[%emt 0:00:30]} Rc1 {[%emt 0:00:30]} 38. g4 {[%emt 0:00:30]} Rc2+ {[%emt 0:00:30]} 39. Kg3 {[%emt 0:00:30]} Bc4 {[%emt 0:03:37]} 40. Bf6 {[%emt 0:00:00]} Re2 {[%emt 0:00:00]} 41. Ra3 {[%emt 0:02:00]} Ra2 {[%emt 0:01:19]} 42. Re3 {[%emt 0:00:30]} Re2 {[%emt 0:00:30]} 43. Rc3 {[%emt 0:01:30]} Rd2 {[%emt 0:02:30]} 44. Re3 {[%emt 0:19:30]} Rd3 {[%emt 0:06:30]} 45. Re7+ {[%emt 0:00:30]} Kc8 {[%emt 0:00:00]} 46. Re8+ {[%emt 0:00:30]} Kd7 {[%emt 0:01:00]} 47. Re7+ {[%emt 0:05:30]} Kc8 {[%emt 0:00:30]} 48. Kf2 {[%emt 0:06:30]} Bd5 {[%emt 0:01:30]} 49. Re8+ {[%emt 0:00:30]} Kb7 {[%emt 0:02:30]} 50. Re7+ {[%emt 0:02:30]} Kc8 {[%emt 0:00:00]} 51. Kg3 {[%emt 0:04:30]} Bc4 $11 {[%emt 0:00:00]} 52. Re8+ {[%emt 0:00:30]} Kd7 {[%emt 0:00:30]} 53. Re7+ {[%emt 0:00:30]} Kc8 {[%emt 0:00:30]} 54. Kf2 {[%emt 0:00:30]} Bd5 {[%emt 0:00:30]} 55. Re8+ {[%emt 0:00:30]} Kb7 {[%emt 0:00:30]} 56. Re7+ {[%emt 0:00:30]} Kc8 {[%emt 0:00:30]} 57. Re8+ {[%emt 0:00:00]} Kb7 {[%emt 0:00:30]} 58. Re3 {[%emt 0:04:00]} Rxe3 {[%emt 0:01:30]} 59. Kxe3 {[%emt 0:00:00]} Kc8 {[%emt 0:00:00]} 60. f4 {[%emt 0:00:00]} Be6 {[%emt 0:01:00]} 61. Ke4 {[%emt 0:00:30]} 1/2-1/2

[Event "World Junior U20 Open 2018"]
[Site "Gebze"]
[Date "2018.09.13"]
[Round "9.57"]
[White "Can, Melih Kaan"]
[Black "Tuncer, Tuna"]
[Result "0-1"]
[ECO "D02"]
[WhiteElo "2195"]
[BlackElo "2342"]
[Annotator "NA"]
[PlyCount "124"]
[EventDate "2018.09.05"]
[EventType "swiss"]
[EventCountry "TUR"]
[SourceTitle "playchess.com"]
[Source "ChessBase"]
[SourceQuality "1"]
[TimeControl "40/5400+30:1800+30"]

1. d4 {[%emt 0:00:30]} Nf6 {[%emt 0:00:30]} 2. Bf4 {[%emt 0:00:00]} d5 {[%emt 0:00:30]} 3. e3 {[%emt 0:00:00]} c5 {[%emt 0:00:00]} 4. c3 {[%emt 0:00:30]} Nc6 {[%emt 0:00:00]} 5. Nd2 {[%emt 0:00:30]} e6 {[%emt 0:00:30]} 6. Ngf3 {[%emt 0:00:30]} cxd4 {[%emt 0:00:30]} 7. exd4 {[%emt 0:00:30] D02: 1 d4 d5 2 Nf3 sidelines, including 2...Nf6 3 g3 and 2...Nf6 3 Bf4} Nh5 {[%emt 0:00:30]} 8. Be5 {[%emt 0:09:30]} (8. Be3 Bd6 9. Bd3 Nf4 10. Bxf4 Bxf4 11. g3 Bd6 12. O-O O-O 13. Re1 Bd7 14. h4 h6 {1-0 (44) Caruana,F (2822)-Aronian,L (2767) chess.com INT 2018}) 8... f6 {[%emt 0:01:30]} 9. Bg3 {[%emt 0:00:30]} g6 {[%emt 0:05:30]} 10. Bd3 {[%emt 0:00:30]} Bg7 {[%emt 0:01:30]} 11. Nh4 {[%emt 0:06:30]} f5 $146 {[%emt 0:11:30]} ({Predecessor:} 11... Nxg3 12. hxg3 e5 13. dxe5 fxe5 14. Qe2 Qf6 {0-1 (34) Annaberdiev,M (2408)-Xu,J (2626) Jodhpur 2003}) 12. Nhf3 {[%emt 0:06:30]} O-O {[%emt 0:01:30]} 13. Qc2 {[%emt 0:06:30]} Nxg3 {[%emt 0:13:30]} 14. hxg3 {[%emt 0:00:30]} Bd7 {[%emt 0:02:30]} 15. Nb3 {[%emt 0:12:30]} b6 {[%emt 0:03:30]} 16. O-O {[%emt 0:46:00]} Qc7 {[%emt 0:06:30]} 17. Rfe1 {[%emt 0:01:30]} Rae8 {[%emt 0:00:30]} 18. Qd2 {[%emt 0:03:30]} f4 19. gxf4 Rxf4 20. Nc1 Ref8 21. Bf1 Bh6 {[%emt 1:17:30]} 22. Qd1 {[%emt 1:21:41]} Rxf3 {[%emt 0:00:30]} 23. gxf3 {[%emt 0:00:30]} Rf5 {[%emt 0:00:30]} 24. Ne2 {[%emt 0:04:50]} Rxf3 {[%emt 0:04:10]} 25. Bg2 {[%emt 0:05:38]} Rf6 {[%emt 0:00:30]} 26. Qd3 {[%emt 0:00:45]} Ne7 {[%emt 0:04:42]} 27. Qg3 {[%emt 0:03:16]} Qd8 {[%emt 0:02:08]} 28. a4 {[%emt 0:06:38]} Nf5 {[%emt 0:04:23]} 29. Qe5 {[%emt 0:00:04]} Bf8 {[%emt 0:01:59]} 30. Qf4 {[%emt 0:01:04]} Bd6 {[%emt 0:01:49]} 31. Qg5 {[%emt 0:00:02]} h6 {[%emt 0:01:47]} 32. Qg4 {[%emt 0:00:01]} h5 {[%emt 0:03:57]} 33. Qh3 {[%emt 0:01:00]} Rf7 {[%emt 0:01:15]} 34. Nc1 {[%emt 0:00:59]} Nh4 {[%emt 0:00:52]} 35. Nd3 {[%emt 0:00:46]} Qf6 {[%emt 0:00:54]} 36. f4 {[%emt 0:00:13]} g5 {[%emt 0:00:30]} 37. Ne5 {[%emt 0:00:20]} g4 {[%emt 0:00:24]} 38. Qd3 {[%emt 0:00:13]} Bxe5 {[%emt 0:01:00]} 39. Rxe5 {[%emt 0:00:30]} Nf5 {[%emt 0:00:30]} 40. c4 {[%emt 0:00:30]} dxc4 {[%emt 0:00:00]} 41. Qxc4 {[%emt 0:12:23]} Ng7 {[%emt 0:31:10]} 42. Qd3 {[%emt 0:10:57]} Nf5 {[%emt 0:00:30]} 43. Qc4 {[%emt 0:00:30]} Ng7 {[%emt 0:00:30]} 44. Rf1 {[%emt 0:00:02]} Kh8 {[%emt 0:00:00]} 45. Rg5 {[%emt 0:02:36]} Rf8 {[%emt 0:00:00]} 46. Qb4 {[%emt 0:03:51]} Bc8 {[%emt 0:00:00]} 47. Qd6 {[%emt 0:02:04]} Ba6 {[%emt 0:00:00]} 48. Rf2 {[%emt 0:00:01]} g3 {[%emt 0:00:00]} 49. Rf3 {[%emt 0:02:30]} h4 {[%emt 0:00:00]} 50. Qe5 {[%emt 0:00:00]} Nf5 {[%emt 0:01:54]} 51. Rh5+ {[%emt 0:01:03]} Kg7 {[%emt 0:00:50]} 52. Rg5+ {[%emt 0:00:01]} Kh6 {[%emt 0:00:29]} 53. Rc3 {[%emt 0:00:44]} Qxe5 {[%emt 0:00:54]} 54. dxe5 {[%emt 0:00:01]} Rd8 {[%emt 0:00:00]} 55. Bf3 {[%emt 0:01:13]} Rd7 {[%emt 0:00:41]} 56. Bg4 {[%emt 0:00:08]} Bb7 {[%emt 0:00:23]} 57. Rc1 {[%emt 0:00:48]} Rd2 {[%emt 0:01:07]} 58. Bxf5 {[%emt 0:00:18]} exf5 {[%emt 0:00:30]} 59. Rxf5 {[%emt 0:00:44]} h3 {[%emt 0:00:23]} 60. Rf6+ {[%emt 0:00:33]} Kh5 {[%emt 0:00:07]} 61. Rf5+ {[%emt 0:00:39]} Kh4 {[%emt 0:00:11]} 62. Kf1 {[%emt 0:00:22]} h2 {[%emt 0:00:44]} 0-1

[Event "World Junior U20 Open 2018"]
[Site "Gebze"]
[Date "2018.09.13"]
[Round "9.58"]
[White "Urazayev, Arystanbek"]
[Black "Wong, Yinn Long"]
[Result "0-1"]
[ECO "B39"]
[WhiteElo "2333"]
[BlackElo "2261"]
[Annotator "NA"]
[PlyCount "114"]
[EventDate "2018.09.05"]
[EventType "swiss"]
[EventCountry "TUR"]
[SourceTitle "playchess.com"]
[Source "ChessBase"]
[SourceQuality "1"]
[TimeControl "40/5400+30:1800+30"]

1. e4 {[%emt 0:00:30]} c5 {[%emt 0:00:30]} 2. Nf3 {[%emt 0:00:00]} g6 {[%emt 0:00:00]} 3. d4 {[%emt 0:01:00]} cxd4 {[%emt 0:00:00]} 4. Nxd4 {[%emt 0:00:00]} Nc6 {[%emt 0:00:30]} 5. c4 {[%emt 0:00:00]} Bg7 {[%emt 0:01:30]} 6. Be3 {[%emt 0:00:30]} Nf6 {[%emt 0:00:30]} 7. Nc3 {[%emt 0:00:30]} Ng4 {[%emt 0:00:30]} 8. Qxg4 {[%emt 0:01:30]} Nxd4 {[%emt 0:00:00]} 9. Qd1 {[%emt 0:00:30]} e5 {[%emt 0:01:00]} 10. Bd3 {[%emt 0:01:30]} O-O {[%emt 0:01:30]} 11. O-O {[%emt 0:01:30]} b6 {[%emt 0:01:30]} 12. Qd2 {[%emt 0:03:30]} Bb7 {[%emt 0:00:30] B39: Sicilian: Maroczy Bind with 5...Bg7 and 7...Ng4} 13. Nd5 {[%emt 0:01:30]} (13. Rad1 f5 14. exf5 gxf5 15. f4 d6 16. Nd5 Qd7 17. fxe5 dxe5 18. Bxd4 exd4 19. Bxf5 Qd6 20. Qd3 b5 21. Bxh7+ Kh8 22. Bg6 Qe6 23. Rfe1 Qg4 24. Re4 Qg5 25. Re5 {1-0 (25) Neiksans,A (2581)-Sulskis,S (2521) Liepaja 2017}) 13... d6 {[%emt 0:06:30]} 14. Rac1 $146 {[%emt 0:02:30]} ({Predecessor:} 14. Rae1 Qd7 15. Bxd4 exd4 16. f4 Rae8 17. b3 Kh8 18. a4 f5 19. exf5 gxf5 20. Rxe8 Rxe8 {1-0 (39) Sermier,G (2376)-Rufino Bengoetxea,A (2289) France 2003}) 14... Rc8 {[%emt 0:13:30]} 15. Bg5 {[%emt 0:06:30]} f6 {[%emt 0:01:30]} 16. Be3 {[%emt 0:00:30]} Ne6 {[%emt 0:07:30]} 17. b4 {[%emt 0:12:00]} Qd7 {[%emt 0:10:30]} 18. Rfd1 {[%emt 0:08:30]} f5 {[%emt 0:48:00]} 19. f3 {[%emt 0:00:30]} Bc6 {[%emt 0:14:30]} 20. Qe1 {[%emt 0:10:30]} f4 {[%emt 1:06:00]} 21. Bf2 {[%emt 0:00:30]} Nd4 {[%emt 0:06:30]} 22. Kh1 {[%emt 0:13:30]} g5 {[%emt 0:05:30]} 23. c5 {[%emt 1:17:30]} bxc5 {[%emt 1:21:53]} 24. bxc5 {[%emt 0:00:30]} Ba4 {[%emt 0:07:22]} 25. cxd6 {[%emt 0:03:30]} Bxd1 {[%emt 0:04:09]} 26. Ne7+ {[%emt 0:03:10]} Kh8 {[%emt 0:02:50]} 27. Nxc8 {[%emt 0:01:16]} Bxf3 {[%emt 0:01:17]} 28. gxf3 {[%emt 0:05:55]} Nxf3 {[%emt 0:00:02]} 29. Qe2 {[%emt 0:02:44]} Qh3 {[%emt 0:01:14]} 30. Bxa7 {[%emt 0:01:17]} Nxh2 {[%emt 0:01:06]} 31. Qxh2 {[%emt 0:00:23]} Qxd3 {[%emt 0:00:03]} 32. Ne7 {[%emt 0:01:35]} Qxe4+ {[%emt 0:01:07]} 33. Kg1 {[%emt 0:00:13]} f3 {[%emt 0:00:49]} 34. Bf2 {[%emt 0:02:04]} Qg4+ {[%emt 0:04:34]} 35. Kh1 {[%emt 0:00:12]} Qe6 {[%emt 0:00:11]} 36. Rd1 {[%emt 0:00:25]} e4 {[%emt 0:00:28]} 37. Nd5 {[%emt 0:02:22]} Be5 {[%emt 0:00:46]} 38. Nc7 {[%emt 0:02:50]} Qf6 {[%emt 0:00:25]} 39. Qh5 {[%emt 0:00:19]} e3 {[%emt 0:00:41]} 40. Nd5 {[%emt 0:00:00]} e2 {[%emt 0:00:00]} 41. Rb1 $2 {[%emt 0:14:15]} (41. Rg1 Qxd6 42. Ne3) 41... Qg6 $2 {[%emt 0:13:03]} ({Less strong is} 41... Qxd6 42. Rb7 $17) (41... Qe6 42. Ne7 Qxd6 43. Qxg5 Qd1+ 44. Be1 Bf6 45. Ng6+ Kg7 46. Rb7+ Rf7 47. Rxf7+ Kxf7 48. Nh8+ Bxh8 49. Qh5+ Ke7 50. Qxh7+ Kd6 51. Qg6+ Kc5 52. Qf5+ Kb6 53. Qe6+ Kb7 54. Qf7+ Kb6 55. Qg6+ Kc5 56. Qf5+ Qd5 57. Qc2+ Qc4 58. Qf5+ Kd4 59. Qxf3 Qd5) 42. Qxg6 {[%emt 0:03:39]} hxg6 {[%emt 0:00:06]} 43. d7 {[%emt 0:04:53] [#]} Kg7 $2 {[%emt 0:04:06]} (43... g4 $1 $19 {[%cal Rg4g3]} 44. Ne7 g3 45. Bxg3 (45. Nxg6+ $2 Kg7 $19) 45... Bxg3 46. Nxg6+ Kg8 47. Nxf8 Bh4) 44. Kg1 {[%emt 0:08:31]} Rd8 {[%emt 0:02:30]} 45. Rb7 {[%emt 0:02:10]} g4 {[%emt 0:02:24]} 46. Nb4 {[%emt 0:00:04]} g3 {[%emt 0:00:38]} 47. Nd3 {[%emt 0:00:11]} gxf2+ {[%emt 0:01:22]} 48. Kxf2 {[%emt 0:00:06]} Bc3 {[%emt 0:01:12]} 49. Rb3 {[%emt 0:01:00]} Ba5 {[%emt 0:00:21]} 50. Ne1 {[%emt 0:01:19]} Rxd7 {[%emt 0:03:11]} 51. Nxf3 {[%emt 0:00:09]} Re7 {[%emt 0:00:55]} 52. Ne1 {[%emt 0:00:57]} Rf7+ {[%emt 0:00:52]} 53. Kxe2 {[%emt 0:01:58]} Re7+ {[%emt 0:00:30]} 54. Kf3 {[%emt 0:00:00]} Bxe1 {[%emt 0:00:00]} 55. Ra3 {[%emt 0:00:01]} Re5 {[%emt 0:00:13]} 56. Ra8 $19 {[%emt 0:00:09]} Ra5 {[%emt 0:00:33]} 57. Re8 {[%emt 0:00:05]} Bd2 {[%emt 0:00:24]} 0-1

[Event "World Junior U20 Open 2018"]
[Site "Gebze"]
[Date "2018.09.13"]
[Round "9.59"]
[White "Thilakarathne, G M H"]
[Black "Tasdogen, Dincer"]
[Result "0-1"]
[ECO "B06"]
[WhiteElo "2238"]
[BlackElo "2329"]
[Annotator "NA"]
[PlyCount "78"]
[EventDate "2018.09.05"]
[EventType "swiss"]
[EventCountry "TUR"]
[SourceTitle "playchess.com"]
[Source "ChessBase"]
[SourceQuality "1"]
[TimeControl "40/5400+30:1800+30"]

1. e4 {[%emt 0:00:30]} g6 {[%emt 0:01:30]} 2. d4 {[%emt 0:00:30]} Bg7 {[%emt 0:00:00]} 3. Nf3 {[%emt 0:00:30]} c6 {[%emt 0:06:00]} 4. Bd3 {[%emt 0:02:30]} d5 {[%emt 0:01:30]} 5. e5 {[%emt 0:01:30]} Nh6 {[%emt 0:01:30]} 6. O-O {[%emt 0:04:30]} O-O {[%emt 0:00:30]} 7. h3 {[%emt 0:08:30]} Bf5 {[%emt 0:12:30]} 8. Re1 {[%emt 0:10:30]} Bxd3 {[%emt 0:01:30]} 9. Qxd3 {[%emt 0:00:30]} f6 $16 {[%emt 0:00:30]} 10. Bf4 Nf7 11. Nbd2 f5 12. e6 Nd6 13. Ng5 Na6 14. Qg3 Ne4 15. Ndxe4 fxe4 16. Qh4 h5 {[%emt 1:14:00]} 17. Nf7 {[%emt 1:25:30]} Qc8 {[%emt 0:02:30]} 18. Qxe7 {[%emt 0:06:47]} Re8 {[%emt 0:00:30]} 19. Qd7 {[%emt 0:04:04]} Rxe6 {[%emt 0:00:00]} 20. Qxc8+ {[%emt 0:01:33]} Rxc8 {[%emt 0:00:00]} 21. Ng5 {[%emt 0:00:30]} Ree8 {[%emt 0:00:30]} 22. Be3 {[%emt 0:00:30]} Nc7 {[%emt 0:00:30]} 23. f3 {[%emt 0:00:30]} c5 {[%emt 0:00:30]} 24. c3 {[%emt 0:01:28]} cxd4 {[%emt 0:11:59]} 25. Bxd4 {[%emt 0:00:00]} Bxd4+ {[%emt 0:02:08]} 26. cxd4 {[%emt 0:00:26]} e3 {[%emt 0:00:30]} 27. Rac1 {[%emt 0:00:40]} Re7 {[%emt 0:02:07]} 28. f4 {[%emt 0:00:16]} Rf8 {[%emt 0:02:21]} 29. Rc3 {[%emt 0:00:45]} e2 {[%emt 0:02:31]} 30. Rc2 {[%emt 0:00:37]} Rxf4 {[%emt 0:00:20]} 31. Rcxe2 {[%emt 0:00:44]} Rxe2 {[%emt 0:00:06]} 32. Rxe2 {[%emt 0:00:02]} Rxd4 {[%emt 0:00:02]} 33. Re7 {[%emt 0:00:12]} Rc4 {[%emt 0:00:01]} 34. Rd7 {[%emt 0:00:26]} Rc2 {[%emt 0:01:46]} 35. b3 {[%emt 0:01:09]} a5 {[%emt 0:00:41]} 36. Nf3 {[%emt 0:00:18]} Ne6 {[%emt 0:00:46]} 37. Rxd5 {[%emt 0:00:39]} Rxa2 {[%emt 0:03:10]} 38. Rd6 {[%emt 0:00:23]} Nf4 {[%emt 0:00:33]} 39. Kf1 {[%emt 0:00:28]} Rb2 {[%emt 0:01:22]} 0-1